[Event "*** Titled Tuesday Blitz"]
[Site "Chess.com"]
[Date "2021.03.09"]
[Round "8"]
[White "anon219"]
[Black "Azerichess"]
[Result "1-0"]
[WhiteElo "2882"]
[BlackElo "2965"]
[TimeControl "180+1"]
[EndTime "11:29:44 PST"]
[Termination "anon219 won by resignation"]

1. e4 {[%clk 0:03:00.9]} 1... c5 {[%clk 0:02:57.7]} 2. Nf3 {[%clk 0:03:00.9]}
2... Nf6 {[%clk 0:02:57.9]} 3. e5 {[%clk 0:02:59.6]} 3... Nd5 {[%clk 0:02:58.2]}
4. b3 {[%clk 0:03:00.2]} 4... g6 {[%clk 0:02:45]} 5. d4 {[%clk 0:03:00]} 5...
cxd4 {[%clk 0:02:36.4]} 6. Qxd4 {[%clk 0:03:00.9]} 6... Nc7 {[%clk 0:02:21.4]}
7. Qh4 {[%clk 0:03:00.4]} 7... Nc6 {[%clk 0:02:19.7]} 8. Bd3 {[%clk 0:02:47.7]}
8... h6 {[%clk 0:01:59.5]} 9. O-O {[%clk 0:02:41.7]} 9... Bg7 {[%clk 0:01:59.9]}
10. Re1 {[%clk 0:02:38.3]} 10... b6 {[%clk 0:01:57.4]} 11. Nc3 {[%clk
0:02:33.5]} 11... Bb7 {[%clk 0:01:56.6]} 12. Bb2 {[%clk 0:02:25.9]} 12... Rc8
{[%clk 0:01:46.5]} 13. Ne4 {[%clk 0:02:24.5]} 13... Ne6 {[%clk 0:01:44]} 14.
Nf6+ {[%clk 0:02:18]} 14... exf6 {[%clk 0:01:40.5]} 15. exf6 {[%clk 0:02:18]}
15... Bf8 {[%clk 0:01:39.5]} 16. Rad1 {[%clk 0:01:53.3]} 16... Qc7 {[%clk
0:01:38.4]} 17. Bxg6 {[%clk 0:01:46.1]} 17... Rg8 {[%clk 0:01:02.3]} 18. Bxf7+
{[%clk 0:01:26.9]} 18... Kxf7 {[%clk 0:01:03.2]} 19. Qh5+ {[%clk 0:01:23.4]}
19... Rg6 {[%clk 0:01:03]} 20. Rxe6 {[%clk 0:01:24]} 20... Qf4 {[%clk
0:00:15.6]} 21. Rxd7+ {[%clk 0:01:18.5]} 1-0

[Event "*** Titled Tuesday Blitz"]
[Site "Chess.com"]
[Date "2021.03.09"]
[Round "8"]
[White "Sychev_Klementy"]
[Black "Marcin"]
[Result "0-1"]
[WhiteElo "2851"]
[BlackElo "2531"]
[TimeControl "180+1"]
[EndTime "11:29:50 PST"]
[Termination "Marcin won by resignation"]

1. e4 {[%clk 0:03:00.9]} 1... c6 {[%clk 0:02:57.8]} 2. Nc3 {[%clk 0:02:56.2]}
2... d5 {[%clk 0:02:57]} 3. Qf3 {[%clk 0:02:56.9]} 3... d4 {[%clk 0:02:16.4]} 4.
Bc4 {[%clk 0:02:55.3]} 4... Nf6 {[%clk 0:02:12.3]} 5. e5 {[%clk 0:02:54.9]} 5...
dxc3 {[%clk 0:02:07.1]} 6. exf6 {[%clk 0:02:54.2]} 6... exf6 {[%clk 0:02:01.6]}
7. dxc3 {[%clk 0:02:51]} 7... Bd6 {[%clk 0:01:59.4]} 8. Bd2 {[%clk 0:02:47.1]}
8... O-O {[%clk 0:01:59]} 9. O-O-O {[%clk 0:02:47]} 9... Qc7 {[%clk 0:01:53.7]}
10. h4 {[%clk 0:02:38.7]} 10... Nd7 {[%clk 0:01:51.8]} 11. h5 {[%clk 0:02:36.8]}
11... Ne5 {[%clk 0:01:51.8]} 12. Qe2 {[%clk 0:02:32.2]} 12... Nxc4 {[%clk
0:01:51.4]} 13. Qxc4 {[%clk 0:02:32.3]} 13... Be6 {[%clk 0:01:52]} 14. Qh4
{[%clk 0:02:32.3]} 14... Bxa2 {[%clk 0:01:49.9]} 15. h6 {[%clk 0:02:31.2]} 15...
g6 {[%clk 0:01:48.9]} 16. Nf3 {[%clk 0:02:24.4]} 16... Be7 {[%clk 0:01:42.5]}
17. Rhe1 {[%clk 0:02:02]} 17... Be6 {[%clk 0:01:41.5]} 18. Nd4 {[%clk
0:01:59.9]} 18... Qa5 {[%clk 0:01:35.1]} 19. Bf4 {[%clk 0:01:55.4]} 19... Rad8
{[%clk 0:01:22.6]} 20. Rd3 {[%clk 0:01:33.2]} 20... Qa1+ {[%clk 0:01:15]} 21.
Kd2 {[%clk 0:01:32]} 21... Qxb2 {[%clk 0:01:15.6]} 22. Be5 {[%clk 0:00:37.9]}
22... g5 {[%clk 0:00:56.1]} 23. Qh3 {[%clk 0:00:37.9]} 23... Bxh3 {[%clk
0:00:53.4]} 0-1

[Event "*** Titled Tuesday Blitz"]
[Site "Chess.com"]
[Date "2021.03.09"]
[Round "8"]
[White "BillieKimbah"]
[Black "JimmmyZhang"]
[Result "1-0"]
[WhiteElo "2871"]
[BlackElo "2472"]
[TimeControl "180+1"]
[EndTime "11:29:51 PST"]
[Termination "BillieKimbah won by resignation"]

1. Nf3 {[%clk 0:02:58.7]} 1... Nf6 {[%clk 0:02:58.7]} 2. g3 {[%clk 0:02:59.3]}
2... g6 {[%clk 0:02:57.6]} 3. Bg2 {[%clk 0:02:59.9]} 3... Bg7 {[%clk 0:02:58.2]}
4. O-O {[%clk 0:03:00.7]} 4... O-O {[%clk 0:02:58.7]} 5. d4 {[%clk 0:03:01.4]}
5... c6 {[%clk 0:02:58.9]} 6. c4 {[%clk 0:02:52.5]} 6... d5 {[%clk 0:02:59]} 7.
Ne5 {[%clk 0:02:52.3]} 7... dxc4 {[%clk 0:02:58.3]} 8. Nxc4 {[%clk 0:02:51.4]}
8... Nbd7 {[%clk 0:02:57.3]} 9. Nc3 {[%clk 0:02:50.2]} 9... Nb6 {[%clk
0:02:57.6]} 10. Ne5 {[%clk 0:02:47.1]} 10... Be6 {[%clk 0:02:55.2]} 11. e4
{[%clk 0:02:42.3]} 11... Nfd7 {[%clk 0:02:47.4]} 12. Nf3 {[%clk 0:02:39.4]}
12... Bc4 {[%clk 0:02:19.1]} 13. Re1 {[%clk 0:02:39.1]} 13... e5 {[%clk
0:02:18.3]} 14. d5 {[%clk 0:02:34.7]} 14... cxd5 {[%clk 0:02:05.8]} 15. exd5
{[%clk 0:02:35.6]} 15... Nf6 {[%clk 0:01:48.1]} 16. Nxe5 {[%clk 0:02:34.3]}
16... Bxd5 {[%clk 0:01:46.9]} 17. Nxd5 {[%clk 0:02:33.2]} 17... Nfxd5 {[%clk
0:01:46.1]} 18. Nd3 {[%clk 0:02:00.2]} 18... Re8 {[%clk 0:01:37.1]} 19. Rxe8+
{[%clk 0:01:40.5]} 19... Qxe8 {[%clk 0:01:36.9]} 20. Qb3 {[%clk 0:01:40.6]}
20... Rd8 {[%clk 0:01:27.1]} 21. Bg5 {[%clk 0:01:40.2]} 21... Bf6 {[%clk
0:01:08.1]} 22. Re1 {[%clk 0:01:39.5]} 22... Qd7 {[%clk 0:00:35]} 23. Nc5 {[%clk
0:01:27.2]} 23... Qc7 {[%clk 0:00:27.5]} 24. Nxb7 {[%clk 0:01:27.1]} 24... Qxb7
{[%clk 0:00:23.1]} 25. Bxf6 {[%clk 0:01:26.4]} 25... Rc8 {[%clk 0:00:23.6]} 26.
Bd4 {[%clk 0:01:22.7]} 26... Qd7 {[%clk 0:00:22.2]} 27. Qf3 {[%clk 0:01:20.8]}
27... Nb4 {[%clk 0:00:20.2]} 28. Qf6 {[%clk 0:01:20]} 1-0

[Event "*** Titled Tuesday Blitz"]
[Site "Chess.com"]
[Date "2021.03.09"]
[Round "8"]
[White "Unknown_IM"]
[Black "LubovMarkelova"]
[Result "1-0"]
[WhiteElo "2383"]
[BlackElo "2223"]
[TimeControl "180+1"]
[EndTime "11:30:03 PST"]
[Termination "Unknown_IM won by resignation"]

1. e4 {[%clk 0:03:00.9]} 1... e6 {[%clk 0:02:59.9]} 2. d4 {[%clk 0:03:00.2]}
2... d5 {[%clk 0:03:00.5]} 3. e5 {[%clk 0:03:00.7]} 3... c5 {[%clk 0:03:00.5]}
4. c3 {[%clk 0:03:01.2]} 4... Qb6 {[%clk 0:03:01.2]} 5. Nf3 {[%clk 0:03:01.5]}
5... Nc6 {[%clk 0:03:01.7]} 6. a3 {[%clk 0:03:02]} 6... Nh6 {[%clk 0:03:01.8]}
7. b4 {[%clk 0:03:00]} 7... cxd4 {[%clk 0:03:00.8]} 8. cxd4 {[%clk 0:03:00.9]}
8... Nf5 {[%clk 0:03:00.9]} 9. Be3 {[%clk 0:03:01.3]} 9... f6 {[%clk 0:02:59.1]}
10. exf6 {[%clk 0:03:00]} 10... gxf6 {[%clk 0:03:00]} 11. Bd3 {[%clk 0:02:59.6]}
11... Nxe3 {[%clk 0:02:59.6]} 12. fxe3 {[%clk 0:03:00.5]} 12... Bh6 {[%clk
0:03:00.1]} 13. Qe2 {[%clk 0:02:58.7]} 13... Bd7 {[%clk 0:03:00.1]} 14. O-O
{[%clk 0:02:56.8]} 14... O-O-O {[%clk 0:02:59.1]} 15. Nc3 {[%clk 0:02:57]} 15...
Ne7 {[%clk 0:02:55.3]} 16. Rfb1 {[%clk 0:02:55.6]} 16... Qd6 {[%clk 0:02:51.3]}
17. Bb5 {[%clk 0:02:48.6]} 17... a6 {[%clk 0:02:25.9]} 18. Bxd7+ {[%clk
0:02:47.8]} 18... Rxd7 {[%clk 0:02:24.4]} 19. Na4 {[%clk 0:02:47.1]} 19... e5
{[%clk 0:02:21.3]} 20. b5 {[%clk 0:02:41.6]} 20... a5 {[%clk 0:02:17.4]} 21. Nc5
{[%clk 0:02:36.7]} 21... Rc7 {[%clk 0:02:17.5]} 22. b6 {[%clk 0:02:36.4]} 22...
Rc6 {[%clk 0:02:16.2]} 23. Qb5 {[%clk 0:02:25.1]} 23... Bxe3+ {[%clk 0:02:13]}
24. Kh1 {[%clk 0:02:24.2]} 24... Bxd4 {[%clk 0:02:01.2]} 25. Nxd4 {[%clk
0:02:22.9]} 25... exd4 {[%clk 0:02:02.1]} 26. Rc1 {[%clk 0:02:22.5]} 26... Rxc5
{[%clk 0:01:25.5]} 27. Rxc5+ {[%clk 0:02:20.8]} 27... Nc6 {[%clk 0:01:21]} 28.
Rac1 {[%clk 0:02:12.4]} 28... Kb8 {[%clk 0:01:08.5]} 29. Rxc6 {[%clk 0:01:17.3]}
29... bxc6 {[%clk 0:01:07]} 30. Rxc6 {[%clk 0:01:18.2]} 30... Qxa3 {[%clk
0:01:03.5]} 31. h3 {[%clk 0:01:10.7]} 31... Rc8 {[%clk 0:00:52.8]} 32. Rxc8+
{[%clk 0:01:09.1]} 32... Kxc8 {[%clk 0:00:53.2]} 33. Qc6+ {[%clk 0:01:09.4]}
33... Kd8 {[%clk 0:00:53.5]} 34. Qc7+ {[%clk 0:01:07.3]} 34... Ke8 {[%clk
0:00:51.9]} 35. b7 {[%clk 0:01:08.2]} 1-0

[Event "*** Titled Tuesday Blitz"]
[Site "Chess.com"]
[Date "2021.03.09"]
[Round "8"]
[White "enriquebutti"]
[Black "NikolaN98"]
[Result "0-1"]
[WhiteElo "2232"]
[BlackElo "2527"]
[TimeControl "180+1"]
[EndTime "11:30:15 PST"]
[Termination "NikolaN98 won by resignation"]

1. d4 {[%clk 0:03:00.6]} 1... e6 {[%clk 0:02:48.6]} 2. Nf3 {[%clk 0:02:59.8]}
2... f5 {[%clk 0:02:48.5]} 3. g3 {[%clk 0:02:57.7]} 3... Nf6 {[%clk 0:02:48.2]}
4. Bg2 {[%clk 0:02:57]} 4... Be7 {[%clk 0:02:49.1]} 5. O-O {[%clk 0:02:56.3]}
5... O-O {[%clk 0:02:47]} 6. c4 {[%clk 0:02:55.8]} 6... d6 {[%clk 0:02:44.8]} 7.
Nc3 {[%clk 0:02:55]} 7... a5 {[%clk 0:02:43.5]} 8. Re1 {[%clk 0:02:49.8]} 8...
Ne4 {[%clk 0:02:36.5]} 9. Nxe4 {[%clk 0:02:45.2]} 9... fxe4 {[%clk 0:02:35.9]}
10. Nd2 {[%clk 0:02:44.7]} 10... d5 {[%clk 0:02:32.5]} 11. e3 {[%clk 0:02:43.4]}
11... c5 {[%clk 0:02:06]} 12. dxc5 {[%clk 0:02:36.9]} 12... Nc6 {[%clk
0:01:53.6]} 13. f3 {[%clk 0:02:33.7]} 13... a4 {[%clk 0:01:34.6]} 14. fxe4
{[%clk 0:02:22.8]} 14... d4 {[%clk 0:01:33.3]} 15. Nf3 {[%clk 0:02:21.5]} 15...
d3 {[%clk 0:01:31.3]} 16. e5 {[%clk 0:02:09.1]} 16... Bxc5 {[%clk 0:01:26.2]}
17. Kh1 {[%clk 0:02:07.8]} 17... Nb4 {[%clk 0:01:09.6]} 18. Bd2 {[%clk
0:01:56.4]} 18... Nc2 {[%clk 0:01:08.3]} 19. Bc3 {[%clk 0:01:55.3]} 19... Nxa1
{[%clk 0:00:47.1]} 20. Qxa1 {[%clk 0:01:53.7]} 20... Bd7 {[%clk 0:00:47.5]} 21.
Nd4 {[%clk 0:01:46]} 21... Bxd4 {[%clk 0:00:14.3]} 22. exd4 {[%clk 0:01:44.1]}
22... Bc6 {[%clk 0:00:14.7]} 23. Bxc6 {[%clk 0:01:38.4]} 23... bxc6 {[%clk
0:00:14]} 24. Qd1 {[%clk 0:01:37.3]} 24... Rf2 {[%clk 0:00:12]} 25. Qxd3 {[%clk
0:01:36.3]} 25... Qf8 {[%clk 0:00:12.2]} 26. a3 {[%clk 0:01:29.5]} 26... Qf7
{[%clk 0:00:11.5]} 27. Qe4 {[%clk 0:01:26.5]} 27... Rf8 {[%clk 0:00:10.7]} 28.
h4 {[%clk 0:01:20.6]} 28... Rf1+ {[%clk 0:00:09.8]} 0-1

[Event "*** Titled Tuesday Blitz"]
[Site "Chess.com"]
[Date "2021.03.09"]
[Round "8"]
[White "kuhlmann"]
[Black "Michaelson_11"]
[Result "1-0"]
[WhiteElo "2399"]
[BlackElo "2270"]
[TimeControl "180+1"]
[EndTime "11:30:17 PST"]
[Termination "kuhlmann won by resignation"]

1. a4 {[%clk 0:03:00.9]} 1... b5 {[%clk 0:02:51.5]} 2. axb5 {[%clk 0:02:59.8]}
2... a6 {[%clk 0:02:48.1]} 3. bxa6 {[%clk 0:02:57.8]} 3... Bxa6 {[%clk
0:02:42.6]} 4. Na3 {[%clk 0:02:46.7]} 4... Bb7 {[%clk 0:02:32.4]} 5. Nf3 {[%clk
0:02:44.5]} 5... g6 {[%clk 0:02:22.2]} 6. g3 {[%clk 0:02:43.6]} 6... Bg7 {[%clk
0:02:13.4]} 7. Bg2 {[%clk 0:02:42.4]} 7... e6 {[%clk 0:02:12.9]} 8. O-O {[%clk
0:02:41.4]} 8... Ne7 {[%clk 0:02:12.5]} 9. c3 {[%clk 0:02:39.9]} 9... c5 {[%clk
0:02:02.1]} 10. d3 {[%clk 0:02:39]} 10... O-O {[%clk 0:02:01.3]} 11. Bf4 {[%clk
0:02:34.2]} 11... d6 {[%clk 0:01:57.2]} 12. Qd2 {[%clk 0:02:32.3]} 12... Nf5
{[%clk 0:01:55.3]} 13. e4 {[%clk 0:02:28.6]} 13... Ne7 {[%clk 0:01:48.5]} 14.
Bh6 {[%clk 0:02:08.1]} 14... Nbc6 {[%clk 0:01:46.6]} 15. Bxg7 {[%clk 0:02:07]}
15... Kxg7 {[%clk 0:01:47.5]} 16. Nc2 {[%clk 0:02:00.1]} 16... Qb6 {[%clk
0:01:45.6]} 17. Na3 {[%clk 0:01:55.9]} 17... Na5 {[%clk 0:01:39.5]} 18. Qe2
{[%clk 0:01:41.7]} 18... Nb3 {[%clk 0:01:37.3]} 19. Rab1 {[%clk 0:01:40.4]}
19... Ba6 {[%clk 0:01:34.8]} 20. Nc4 {[%clk 0:01:37.1]} 20... Bxc4 {[%clk
0:01:27.8]} 21. dxc4 {[%clk 0:01:36.5]} 21... f6 {[%clk 0:01:21.6]} 22. Rfd1
{[%clk 0:01:30.5]} 22... Ra4 {[%clk 0:01:19.9]} 23. Nd2 {[%clk 0:01:28.4]} 23...
Rb8 {[%clk 0:01:01.3]} 24. Nxb3 {[%clk 0:01:24.1]} 24... Qxb3 {[%clk 0:01:02.2]}
25. Rxd6 {[%clk 0:01:22.4]} 25... Rxc4 {[%clk 0:01:02]} 26. Rd7 {[%clk
0:01:18.4]} 26... Kf7 {[%clk 0:01:00]} 27. e5 {[%clk 0:01:13.2]} 27... f5 {[%clk
0:00:45.9]} 28. Qd2 {[%clk 0:01:09.1]} 28... Qa2 {[%clk 0:00:31.6]} 29. Rf1
{[%clk 0:01:04]} 29... Qxb2 {[%clk 0:00:29.4]} 30. Qg5 {[%clk 0:01:01.6]} 1-0

[Event "*** Titled Tuesday Blitz"]
[Site "Chess.com"]
[Date "2021.03.09"]
[Round "8"]
[White "FMJoseHerrera"]
[Black "Eloist"]
[Result "1-0"]
[WhiteElo "2523"]
[BlackElo "2331"]
[TimeControl "180+1"]
[EndTime "11:30:20 PST"]
[Termination "FMJoseHerrera won by resignation"]

1. Nf3 {[%clk 0:03:00.9]} 1... Nf6 {[%clk 0:02:59.2]} 2. g3 {[%clk 0:02:58.9]}
2... b6 {[%clk 0:02:58.4]} 3. Bg2 {[%clk 0:02:58]} 3... Bb7 {[%clk 0:02:58.4]}
4. d3 {[%clk 0:02:57.7]} 4... d5 {[%clk 0:02:50.5]} 5. O-O {[%clk 0:02:49.9]}
5... e6 {[%clk 0:02:49.1]} 6. c4 {[%clk 0:02:49.1]} 6... Be7 {[%clk 0:02:40.5]}
7. cxd5 {[%clk 0:02:48.5]} 7... Nxd5 {[%clk 0:02:38.4]} 8. Nc3 {[%clk 0:02:48]}
8... c5 {[%clk 0:02:36.9]} 9. e4 {[%clk 0:02:44.8]} 9... Nb4 {[%clk 0:02:32.5]}
10. d4 {[%clk 0:02:43.2]} 10... cxd4 {[%clk 0:02:29.7]} 11. Nxd4 {[%clk
0:02:44.1]} 11... O-O {[%clk 0:02:07.7]} 12. Be3 {[%clk 0:02:41.4]} 12... N8c6
{[%clk 0:01:59.5]} 13. Nb3 {[%clk 0:02:31.9]} 13... Ne5 {[%clk 0:01:56]} 14. a3
{[%clk 0:02:17.5]} 14... Nbd3 {[%clk 0:01:51.2]} 15. Qe2 {[%clk 0:02:12.1]}
15... Ba6 {[%clk 0:01:28.5]} 16. Rfd1 {[%clk 0:02:11]} 16... Qc7 {[%clk
0:01:22.8]} 17. Nd4 {[%clk 0:01:56.2]} 17... Nc5 {[%clk 0:00:50.6]} 18. Ndb5
{[%clk 0:01:46]} 18... Qc6 {[%clk 0:00:26.3]} 19. f4 {[%clk 0:01:37.8]} 19...
Ned3 {[%clk 0:00:23]} 20. e5 {[%clk 0:01:35.8]} 20... Qd7 {[%clk 0:00:14.2]} 21.
a4 {[%clk 0:01:17.6]} 21... Rad8 {[%clk 0:00:13.7]} 22. b4 {[%clk 0:01:11.7]}
22... Nb3 {[%clk 0:00:11.1]} 23. Ra3 {[%clk 0:01:05.5]} 23... Bxb4 {[%clk
0:00:10.9]} 24. Rxb3 {[%clk 0:01:04.7]} 24... Bxb5 {[%clk 0:00:08.1]} 25. Nxb5
{[%clk 0:01:02.1]} 25... a6 {[%clk 0:00:05.4]} 26. Rbxd3 {[%clk 0:01:00.6]} 1-0

[Event "*** Titled Tuesday Blitz"]
[Site "Chess.com"]
[Date "2021.03.09"]
[Round "8"]
[White "Fortitudine"]
[Black "ApoIogiA"]
[Result "1-0"]
[WhiteElo "2304"]
[BlackElo "2184"]
[TimeControl "180+1"]
[EndTime "11:30:20 PST"]
[Termination "Fortitudine won by resignation"]

1. c4 {[%clk 0:03:00.9]} 1... Nf6 {[%clk 0:02:58.1]} 2. g3 {[%clk 0:02:59.6]}
2... g6 {[%clk 0:02:58]} 3. b3 {[%clk 0:02:58.7]} 3... Bg7 {[%clk 0:02:58.9]} 4.
Bb2 {[%clk 0:02:59.1]} 4... O-O {[%clk 0:02:59.2]} 5. Bg2 {[%clk 0:02:59.6]}
5... c5 {[%clk 0:02:58.5]} 6. Nf3 {[%clk 0:02:58.1]} 6... Nc6 {[%clk 0:02:57.8]}
7. O-O {[%clk 0:02:58]} 7... d5 {[%clk 0:02:55.6]} 8. cxd5 {[%clk 0:02:57.6]}
8... Nxd5 {[%clk 0:02:56.5]} 9. Bxg7 {[%clk 0:02:58.1]} 9... Kxg7 {[%clk
0:02:57.4]} 10. d4 {[%clk 0:02:58.5]} 10... cxd4 {[%clk 0:02:03.3]} 11. Nxd4
{[%clk 0:02:59.4]} 11... e5 {[%clk 0:02:03.8]} 12. Nxc6 {[%clk 0:02:12.6]} 12...
bxc6 {[%clk 0:02:04.7]} 13. Qc2 {[%clk 0:02:10.1]} 13... Qf6 {[%clk 0:01:50.7]}
14. Qb2 {[%clk 0:02:06.6]} 14... Be6 {[%clk 0:01:45.1]} 15. Nd2 {[%clk
0:02:06.2]} 15... Rfe8 {[%clk 0:01:06]} 16. Ne4 {[%clk 0:01:59.2]} 16... Qe7
{[%clk 0:00:56.6]} 17. Qxe5+ {[%clk 0:01:57.7]} 17... f6 {[%clk 0:00:56.2]} 18.
Qb2 {[%clk 0:01:28.8]} 18... Bf5 {[%clk 0:00:52.8]} 19. Nc3 {[%clk 0:01:26.9]}
19... Nxc3 {[%clk 0:00:34.9]} 20. Qxc3 {[%clk 0:01:27.8]} 20... Be4 {[%clk
0:00:35.8]} 21. Bxe4 {[%clk 0:01:22.8]} 21... Qxe4 {[%clk 0:00:36.7]} 22. e3
{[%clk 0:01:22.1]} 22... Rac8 {[%clk 0:00:34.9]} 23. Rac1 {[%clk 0:01:20.2]}
23... h5 {[%clk 0:00:34.5]} 24. Qc4 {[%clk 0:01:18]} 24... Qe7 {[%clk
0:00:22.3]} 25. Rcd1 {[%clk 0:01:16.6]} 25... Kh6 {[%clk 0:00:19]} 26. Rd4
{[%clk 0:01:15.2]} 26... g5 {[%clk 0:00:18.2]} 27. Rfd1 {[%clk 0:01:14.6]} 27...
Rc7 {[%clk 0:00:18.6]} 28. Rd6 {[%clk 0:01:11.1]} 28... Kg6 {[%clk 0:00:18.9]}
29. Rxc6 {[%clk 0:01:08.7]} 29... Rd7 {[%clk 0:00:18.2]} 30. Qc2+ {[%clk
0:01:05.2]} 30... Kg7 {[%clk 0:00:16.2]} 31. Rxd7 {[%clk 0:01:05.2]} 1-0

[Event "*** Titled Tuesday Blitz"]
[Site "Chess.com"]
[Date "2021.03.09"]
[Round "8"]
[White "Thjop"]
[Black "GM_LOADING"]
[Result "0-1"]
[WhiteElo "2663"]
[BlackElo "2570"]
[TimeControl "180+1"]
[EndTime "11:30:21 PST"]
[Termination "GM_LOADING won by resignation"]

1. e4 {[%clk 0:02:57.5]} 1... e5 {[%clk 0:02:59.1]} 2. Nf3 {[%clk 0:02:57.5]}
2... Nc6 {[%clk 0:02:59.4]} 3. Bc4 {[%clk 0:02:58]} 3... Nf6 {[%clk 0:02:59.3]}
4. d3 {[%clk 0:02:58.1]} 4... h6 {[%clk 0:02:58.8]} 5. c3 {[%clk 0:02:58.1]}
5... d6 {[%clk 0:02:57.4]} 6. Nbd2 {[%clk 0:02:57.4]} 6... g6 {[%clk 0:02:55.8]}
7. Bb3 {[%clk 0:02:57.1]} 7... Bg7 {[%clk 0:02:54.2]} 8. Nf1 {[%clk 0:02:57.3]}
8... O-O {[%clk 0:02:54]} 9. Ng3 {[%clk 0:02:57.3]} 9... d5 {[%clk 0:02:52.3]}
10. Qe2 {[%clk 0:02:57.1]} 10... Be6 {[%clk 0:02:51.3]} 11. h3 {[%clk
0:02:56.3]} 11... Re8 {[%clk 0:02:50.9]} 12. Nh2 {[%clk 0:02:56.2]} 12... Qd7
{[%clk 0:02:36.3]} 13. Nf3 {[%clk 0:02:45.2]} 13... a5 {[%clk 0:02:33.8]} 14.
Ba4 {[%clk 0:02:44.6]} 14... Qd6 {[%clk 0:02:29.5]} 15. Bd2 {[%clk 0:02:39.9]}
15... Red8 {[%clk 0:02:28.2]} 16. O-O {[%clk 0:02:36.1]} 16... Rab8 {[%clk
0:02:21]} 17. Rfd1 {[%clk 0:02:29.8]} 17... b5 {[%clk 0:02:16.7]} 18. Bb3 {[%clk
0:02:28.7]} 18... a4 {[%clk 0:02:13.2]} 19. Bc2 {[%clk 0:02:23.8]} 19... dxe4
{[%clk 0:01:46.7]} 20. dxe4 {[%clk 0:02:24.7]} 20... Bc4 {[%clk 0:01:46.6]} 21.
Qe1 {[%clk 0:02:24.1]} 21... Qe6 {[%clk 0:01:45.5]} 22. a3 {[%clk 0:02:20.7]}
22... Na5 {[%clk 0:01:44.4]} 23. Be3 {[%clk 0:02:16.2]} 23... Ne8 {[%clk
0:01:28]} 24. Rxd8 {[%clk 0:02:12.7]} 24... Rxd8 {[%clk 0:01:27.7]} 25. Rd1
{[%clk 0:02:11.9]} 25... Rxd1 {[%clk 0:01:27.1]} 26. Qxd1 {[%clk 0:02:12.8]}
26... Nd6 {[%clk 0:01:25.3]} 27. h4 {[%clk 0:02:03.9]} 27... Bb3 {[%clk
0:01:25]} 28. h5 {[%clk 0:02:01.2]} 28... g5 {[%clk 0:01:20.3]} 29. Bc5 {[%clk
0:01:41]} 29... Bxc2 {[%clk 0:01:12.7]} 30. Qxc2 {[%clk 0:01:41.9]} 30... Ndc4
{[%clk 0:01:08.8]} 31. Bb4 {[%clk 0:01:31.3]} 31... Nb3 {[%clk 0:01:07.9]} 32.
Nf5 {[%clk 0:01:13.8]} 32... c5 {[%clk 0:01:00.1]} 33. Bxc5 {[%clk 0:01:03.5]}
33... Nxc5 {[%clk 0:00:59.6]} 34. Qd1 {[%clk 0:01:02.3]} 34... Qd7 {[%clk
0:00:57.5]} 35. Qd5 {[%clk 0:00:56.5]} 35... Qxd5 {[%clk 0:00:55.5]} 36. exd5
{[%clk 0:00:57.4]} 36... Bf8 {[%clk 0:00:51]} 37. d6 {[%clk 0:00:52.2]} 37...
Nxd6 {[%clk 0:00:44]} 0-1

[Event "*** Titled Tuesday Blitz"]
[Site "Chess.com"]
[Date "2021.03.09"]
[Round "8"]
[White "niki_2003"]
[Black "ailime26"]
[Result "0-1"]
[WhiteElo "2031"]
[BlackElo "2093"]
[TimeControl "180+1"]
[EndTime "11:30:25 PST"]
[Termination "ailime26 won by resignation"]

1. e4 {[%clk 0:03:00.9]} 1... a6 {[%clk 0:02:23.1]} 2. d4 {[%clk 0:02:56.9]}
2... g6 {[%clk 0:02:22.5]} 3. Nc3 {[%clk 0:02:54]} 3... Bg7 {[%clk 0:02:23]} 4.
Nf3 {[%clk 0:02:51.7]} 4... b5 {[%clk 0:02:23.3]} 5. Be3 {[%clk 0:02:49.6]} 5...
Bb7 {[%clk 0:02:23.2]} 6. Bd3 {[%clk 0:02:47.1]} 6... e6 {[%clk 0:02:22.5]} 7.
Ne2 {[%clk 0:02:46.8]} 7... d6 {[%clk 0:02:22.2]} 8. c3 {[%clk 0:02:47.4]} 8...
Nd7 {[%clk 0:02:22.7]} 9. O-O {[%clk 0:02:43.3]} 9... Ne7 {[%clk 0:02:22.7]} 10.
Nf4 {[%clk 0:02:40.1]} 10... O-O {[%clk 0:02:21.3]} 11. Nd2 {[%clk 0:02:40.2]}
11... c5 {[%clk 0:02:20.7]} 12. Ne2 {[%clk 0:02:40.1]} 12... Qc7 {[%clk
0:02:15.8]} 13. f4 {[%clk 0:02:39.5]} 13... f5 {[%clk 0:02:11.4]} 14. e5 {[%clk
0:02:39.2]} 14... cxd4 {[%clk 0:02:06.9]} 15. cxd4 {[%clk 0:02:38.7]} 15... dxe5
{[%clk 0:02:06.9]} 16. fxe5 {[%clk 0:02:37.5]} 16... Nd5 {[%clk 0:02:06.2]} 17.
Bf4 {[%clk 0:02:34.5]} 17... Rac8 {[%clk 0:02:03]} 18. Rc1 {[%clk 0:02:31.1]}
18... Qb6 {[%clk 0:02:03.3]} 19. Rxc8 {[%clk 0:02:30]} 19... Rxc8 {[%clk
0:02:04.2]} 20. Nf3 {[%clk 0:02:17]} 20... h6 {[%clk 0:01:51.4]} 21. Qd2 {[%clk
0:02:15.1]} 21... g5 {[%clk 0:01:50]} 22. Bg3 {[%clk 0:02:14.6]} 22... g4 {[%clk
0:01:41.4]} 23. Nh4 {[%clk 0:02:11.2]} 23... Kh7 {[%clk 0:01:27.7]} 24. Kh1
{[%clk 0:02:01.9]} 24... Nf8 {[%clk 0:01:19.8]} 25. Nf4 {[%clk 0:01:58.5]} 25...
Nxf4 {[%clk 0:01:14.7]} 26. Qxf4 {[%clk 0:01:52.9]} 26... Kh8 {[%clk 0:00:51]}
27. Bxf5 {[%clk 0:01:29.7]} 27... exf5 {[%clk 0:00:45.4]} 28. Nxf5 {[%clk
0:01:26.5]} 28... Ng6 {[%clk 0:00:29.3]} 29. Qxg4 {[%clk 0:01:21.3]} 29... Rf8
{[%clk 0:00:16.5]} 30. Qxg6 {[%clk 0:01:15.4]} 30... Qxg6 {[%clk 0:00:16.1]} 31.
Ne3 {[%clk 0:01:14.5]} 31... Rxf1+ {[%clk 0:00:15.6]} 32. Nxf1 {[%clk
0:01:15.4]} 32... Qe4 {[%clk 0:00:15.9]} 0-1